bitfinex/quotes_ETHUSD_20250602
["timestamp","ask_amount","ask_price","bid_price","bid_amount"]
[1748869762744,0.7733,2492.8,2492.3,0.7742]
[1748869762976,4.01219707,2492.4,2492.3,0.7742]
[1748869763345,4.01219707,2492.4,2492.1,1.082]
[1748869763346,4.01251905,2492.2,2492.1,0.01]
[1748869763545,4.01355334,2491.6,2491.5,0.8169]
[1748869763748,8.8165637,2491.6,2491.5,0.8169]
[1748869764184,8.8165637,2491.6,2491.1,8.01]
[1748869764185,4.01396476,2491.4,2491.2,0.8169]
[1748869764391,4.01396861,2491.3,2491.2,0.8169]
[1748869764658,1.28299233,2491.6,2491.2,0.8169]
[1748869764888,4.01357705,2491.6,2491.2,0.8169]
[1748869765193,4.01300212,2491.9,2491.3,0.040141]
[1748869765362,4.01343078,2491.7,2491.4,0.8169]
[1748869765548,8.81625564,2491.8,2491.4,0.8169]
[1748869765752,4.01314304,2491.9,2491.4,0.8169]
[1748869766000,4.01316815,2491.8,2491.4,0.8169]
[1748869767282,4.01305159,2491.9,2491.4,0.8169]
[1748869767489,4.01323889,2491.8,2491.4,0.8169]
[1748869768081,4.01302272,2491.9,2491.4,0.8169]
[1748869768394,4.01300212,2491.9,2491.4,0.8169]
[1748869768567,4.01316317,2491.8,2491.4,0.8169]
[1748869768753,4.01304523,2491.9,2491.4,0.8169]
[1748869768955,4.80301036,2492.2,2491.5,0.8139]
[1748869769192,4.01311747,2491.9,2491.5,0.8139]
[1748869769907,4.80301036,2491.8,2491.5,0.8139]
[1748869770205,4.01324154,2491.8,2491.5,0.8139]
[1748869770694,4.01317425,2491.8,2491.5,0.8139]
[1748869770890,4.80301036,2491.9,2491.5,0.8139]
[1748869771090,4.01336147,2491.7,2491.5,0.8139]
[1748869771453,4.01324213,2491.8,2491.5,0.8139]
[1748869771657,4.01335337,2491.7,2491.5,0.8139]
[1748869771854,4.01348531,2491.6,2491.5,0.8139]
[1748869772087,8.81641503,2491.7,2491.5,0.8139]
[1748869772396,4.01348531,2491.6,2491.5,0.8139]
[1748869772991,10.09942066,2491.7,2491.5,0.8139]
[1748869773160,6.08597696,2491.7,2491.5,0.8139]
[1748869773494,4.01348531,2491.6,2491.5,0.8139]
[1748869773679,4.01365744,2491.5,2491.3,0.8037]
[1748869773856,8.81642173,2491.7,2491.3,0.8037]
[1748869774058,4.01359325,2491.6,2491.3,0.8037]
[1748869774692,4.80301036,2491.7,2491.3,0.8037]
[1748869774995,4.01350411,2491.6,2491.3,0.8037]
[1748869775197,0.7602,2492.1,2491.4,0.55]
[1748869775495,4.80301036,2492.0,2491.5,0.8326]
[1748869775795,4.01333593,2491.7,2491.5,0.8326]
[1748869776002,5.2833114,2492.0,2491.5,0.8326]
[1748869776155,4.01348531,2491.6,2491.5,0.8326]
[1748869776996,8.81649567,2491.6,2491.1,0.60013511]
[1748869777296,4.01387903,2491.4,2491.2,0.7851]
[1748869778200,4.01396861,2491.3,2491.2,0.7851]
[1748869779794,4.80301036,2491.4,2491.2,0.7851]
[1748869779972,8.81696457,2491.4,2491.2,0.7851]
[1748869780170,4.01396861,2491.3,2491.2,0.7851]
[1748869780694,4.01412973,2491.2,2491.1,0.01]
[1748869783585,5.29724237,2491.2,2491.1,0.01]
[1748869784101,4.01404717,2491.3,2491.1,0.01]
[1748869784405,4.01399221,2491.3,2491.1,0.01]
[1748869784712,4.0140701,2491.3,2491.1,0.01]
[1748869785004,4.01410041,2491.3,2491.1,0.01]
[1748869785305,4.01412973,2491.2,2491.1,0.01]
[1748869787215,5.29725378,2491.2,2491.1,0.01]
[1748869789001,4.01412973,2491.2,2491.1,0.01]
[1748869798681,4.01389338,2491.4,2491.1,0.01]
[1748869798908,4.01406447,2491.3,2491.1,0.01]
[1748869799312,4.01390297,2491.4,2491.1,0.01]
[1748869799507,4.01409872,2491.3,2491.1,0.01]
[1748869799751,4.01412973,2491.2,2491.1,0.01]
[1748869799940,8.81704557,2491.3,2491.1,0.01]
[1748869800280,4.01412973,2491.2,2491.1,0.01]
[1748869800564,8.81710049,2491.3,2491.1,0.01]
[1748869801009,4.01412973,2491.2,2491.1,0.01]
[1748869801408,8.81706647,2491.3,2491.1,0.01]
[1748869803323,4.01412973,2491.2,2491.1,0.01]
[1748869805132,4.80301036,2491.3,2491.1,0.01]
[1748869805337,8.8169862,2491.3,2491.1,0.01]
[1748869805558,4.80301036,2491.3,2491.1,0.01]
[1748869806059,4.01367015,2491.5,2491.2,0.8221]
[1748869806419,4.01390132,2491.4,2491.2,0.8221]
[1748869806621,4.80301036,2491.3,2491.1,0.01]
[1748869806948,4.01412973,2491.2,2491.1,0.01]
[1748869808719,5.20440049,2491.3,2491.1,0.01]
[1748869808933,4.01412973,2491.2,2491.1,0.01]
[1748869810655,0.40139013,2491.3,2491.1,0.01]
[1748869810857,4.01404692,2491.3,2491.2,0.8028]
[1748869811950,4.01412973,2491.2,2491.1,0.01]
[1748869812626,5.29724176,2491.2,2491.1,0.01]
[1748869813745,4.01412973,2491.2,2491.1,0.01]
[1748869816584,4.79602973,2491.2,2491.1,0.01]
[1748869817498,4.01540417,2490.5,2490.2,0.7844]
[1748869817673,4.01461319,2490.9,2490.3,0.38186969]
[1748869817674,4.80301036,2490.4,2490.3,0.38186969]
[1748869817999,4.80301036,2490.4,2490.2,0.7844]
[1748869818358,4.80301036,2490.6,2490.2,0.7844]
[1748869818587,8.81812792,2490.6,2490.2,0.7844]
[1748869819097,4.80301036,2490.6,2490.3,0.55]
[1748869820102,8.81813055,2490.6,2490.3,0.55]
[1748869820593,4.80301036,2490.6,2490.3,0.55]
[1748869825625,4.80301036,2490.6,2490.4,0.7945]
[1748869825988,4.01486365,2490.8,2490.5,0.55]
[1748869825989,4.80301036,2490.8,2490.5,0.55]
[1748869826214,8.81780905,2490.8,2490.5,0.55]
[1748869826427,4.01493593,2490.7,2490.5,0.55]
[1748869826591,8.81786609,2490.8,2490.5,0.55]
[1748869826786,4.80301036,2490.6,2490.5,0.55]
[1748869826999,4.80301036,2490.6,2490.4,0.7945]
[1748869828825,4.80301036,2490.6,2490.3,0.55]
[1748869829030,8.81814032,2490.6,2490.3,0.55]
[1748869829231,4.80301036,2490.4,2490.2,0.7927]
[1748869830831,4.80301036,2490.4,2490.1,0.01]
[1748869830832,4.01561202,2490.3,2490.1,0.01]
[1748869831615,8.81849022,2490.4,2490.1,0.01]
[1748869831813,4.01562326,2490.3,2490.1,0.01]
[1748869832019,8.81875206,2490.2,2490.1,0.01]
[1748869832199,9.70062727,2490.2,2490.1,0.01]
[1748869833014,13.81362727,2490.2,2490.1,0.01]
[1748869833955,9.70062727,2490.2,2490.1,0.01]
[1748869834406,10.0939705,2490.2,2490.1,0.01]
[1748869837916,14.2079705,2490.2,2490.1,0.01]
[1748869838531,15.0025705,2490.2,2490.1,0.01]
[1748869840704,10.8885705,2490.2,2490.1,0.01]
[1748869840909,15.0025705,2490.2,2490.1,0.01]
[1748869843947,6.08556014,2490.2,2490.1,0.01]
[1748869844164,15.0025705,2490.2,2490.1,0.01]
[1748869848864,6.08556014,2490.2,2490.1,0.01]
[1748869849159,9.21209529,2490.2,2490.1,0.01]
[1748869853276,4.40908493,2490.2,2490.1,0.01]
[1748869853479,9.21209529,2490.2,2490.1,0.01]
[1748869853987,4.40908493,2490.2,2490.1,0.01]
[1748869854186,9.21209529,2490.2,2490.1,0.01]
[1748869854862,8.81820859,2490.6,2490.1,0.8093]
[1748869855036,4.80301036,2490.6,2490.2,0.59015707]
[1748869855237,4.80301036,2490.6,2490.3,0.7993]
[1748869855971,4.80301036,2490.6,2490.4,0.55]
[1748869856844,4.80301036,2490.8,2490.2,0.55]
[1748869857176,4.80301036,2490.8,2490.4,0.55]
[1748869857388,4.80301036,2490.8,2490.5,0.808]
[1748869857740,0.7628,2491.2,2490.5,0.808]
[1748869858088,4.80301036,2491.0,2490.5,0.808]
[1748869858388,8.81747565,2491.0,2490.5,0.808]
[1748869858591,4.80301036,2490.8,2490.5,0.808]
[1748869858793,4.01446529,2491.0,2490.5,0.808]
[1748869858794,4.80301036,2491.0,2490.7,0.55]
[1748869861078,4.80301036,2491.0,2490.8,0.7527]
[1748869861299,3.09181769,2491.3,2490.8,0.7527]
[1748869861469,4.01396094,2491.4,2490.8,0.7527]
[1748869861819,4.80301036,2491.3,2491.0,0.7711]
[1748869866241,4.80301036,2491.3,2491.0,4.8841]
[1748869867051,4.80301036,2491.1,2491.0,0.7711]
[1748869867349,4.80301036,2491.1,2490.6,8.0]
[1748869867350,4.01445202,2491.0,2490.7,1.8441]
[1748869867553,4.80301036,2490.9,2490.8,0.55]
[1748869873360,4.01349944,2491.6,2491.0,0.55]
[1748869873656,4.80301036,2491.1,2491.0,0.55]
[1748869874423,4.80301036,2491.3,2491.0,0.55]
[1748869874623,8.48030104,2492.0,2491.0,0.59013966]
[1748869874824,4.80301036,2491.3,2491.1,4.9162]
[1748869878349,4.01335966,2491.7,2491.1,4.9162]
[1748869878555,4.80301036,2491.8,2491.5,0.55]
[1748869879582,4.80301036,2491.8,2491.5,4.663]
[1748869879757,4.80301036,2492.1,2491.6,0.8262]
[1748869879962,4.80301036,2492.1,2491.6,1.47941]
[1748869880157,4.80301036,2491.9,2491.6,1.47941]
[1748869880580,4.78613381,2492.2,2491.6,1.47941]
[1748869880788,4.80301036,2491.9,2491.6,1.47941]
[1748869880975,4.80301036,2491.9,2491.8,0.55]
[1748869888532,4.80301036,2492.0,2491.8,0.55]
[1748869888891,0.7589,2492.4,2491.9,0.7913]
[1748869889084,4.80301036,2492.2,2491.9,0.7913]
[1748869890582,4.80301036,2492.2,2491.9,4.9023]
[1748869890783,4.80301036,2492.2,2491.9,5.51296679]
[1748869891388,4.80301036,2492.2,2491.9,1.40196679]
[1748869891618,4.80301036,2492.0,2491.9,1.3413]
[1748869894385,0.7516,2492.7,2492.0,0.55]
[1748869894581,0.7516,2492.7,2492.2,1.3112]
[1748869894793,4.80301036,2492.6,2492.4,0.55]
[1748869895222,4.80301036,2492.6,2492.4,0.54623206]
[1748869898907,4.80301036,2492.6,2492.0,4.01275916]
[1748869898908,4.77519157,2492.5,2492.0,1.071]
[1748869899111,4.80301036,2492.1,2492.0,5.182]
[1748869900388,4.80301036,2492.3,2492.1,0.55]
[1748869900605,4.80301036,2492.3,2492.1,1.1232]
[1748869901944,4.80301036,2492.3,2492.1,0.55]
[1748869903129,4.80301036,2492.3,2492.2,0.55]
[1748869903441,4.80301036,2492.3,2491.9,0.55]
[1748869903601,4.80301036,2492.3,2492.1,0.55]
[1748869905108,4.80301036,2492.3,2492.1,4.66]
[1748869908047,4.80301036,2492.3,2491.9,0.55]
[1748869908248,4.80301036,2492.3,2492.1,0.55]
[1748869909656,4.80301036,2492.3,2491.9,0.55]
[1748869909851,4.80301036,2492.3,2492.1,0.55]
[1748869910358,4.80301036,2492.3,2491.9,0.55]
[1748869910555,4.80301036,2492.3,2491.9,0.60038017]
[1748869910759,4.80301036,2492.3,2492.1,0.55]
[1748869915856,4.80301036,2492.5,2492.3,0.55]
[1748869916044,4.80301036,2492.5,2492.3,4.66]
[1748869918781,8.8150577,2492.5,2492.3,4.66]
[1748869918981,4.01177392,2492.7,2492.3,4.66]
[1748869918982,8.81481372,2492.7,2492.3,4.66]
[1748869919186,4.01190113,2492.6,2492.3,4.66]
[1748869919482,4.80301036,2492.7,2492.3,4.66]
[1748869919646,4.80301036,2492.7,2492.3,5.24750962]
[1748869919853,4.80301036,2492.7,2492.3,9.25985527]
[1748869920053,4.81301036,2492.9,2492.4,0.7619]
[1748869920252,4.81301036,2492.9,2492.6,0.55]
[1748869920458,4.81301036,2492.9,2492.7,4.11]
[1748869920862,0.01,2492.9,2492.8,1.3528]
[1748869921042,0.01,2492.9,2492.8,1.39291171]
[1748869921247,0.01,2492.9,2492.8,1.3528]
[1748869923693,0.01,2492.9,2492.8,5.18]
[1748869923694,8.82447754,2492.9,2492.8,5.18]
[1748869923852,10.18353023,2492.9,2492.8,5.18]
[1748869924453,8.82447754,2492.9,2492.8,5.18]
[1748869924649,4.81301036,2492.9,2492.8,5.18]
[1748869924851,8.82440271,2492.9,2492.8,5.18]
[1748869925391,8.82440271,2492.9,2492.5,0.55]
[1748869925586,8.82440271,2492.9,2492.8,4.109]
[1748869925889,4.0117142,2492.7,2492.6,5.18]
[1748869926204,4.01226578,2492.4,2492.2,1.07]
[1748869926389,4.80301036,2492.3,2492.1,1.07]
[1748869926583,4.80301036,2492.3,2492.2,4.659]
[1748869927387,4.80301036,2492.3,2492.2,0.55]
[1748869927585,8.81540064,2492.3,2492.1,1.07]
[1748869927782,8.81540064,2492.3,2492.1,5.179]
[1748869927951,4.80301036,2492.3,2491.7,0.8293]
[1748869928154,4.80301036,2492.3,2491.1,8.668]
[1748869928155,4.80301036,2491.8,2491.5,0.8293]
[1748869928470,4.80301036,2491.8,2491.6,5.179]
[1748869928670,4.80301036,2491.8,2491.7,0.55]
[1748869929193,4.76364667,2492.1,2491.7,4.109]
[1748869929397,4.80301036,2492.4,2492.0,0.55]
[1748869929691,4.80301036,2492.4,2492.2,0.55]
[1748869929896,4.80301036,2492.6,2492.2,1.0159]
[1748869930065,4.80301036,2492.6,2492.4,0.55]
[1748869932188,0.7909,2492.9,2492.4,0.55]
[1748869932407,0.01,2492.9,2492.6,0.55]
[1748869932703,4.80301036,2492.8,2492.6,0.55]
[1748869933893,0.01,2492.9,2492.6,0.55]
[1748869934088,4.81301036,2492.9,2492.6,0.55]
[1748869935515,4.81301036,2492.9,2492.6,1.0159]
[1748869937788,0.01,2492.9,2492.8,0.55]
[1748869940791,4.01178694,2492.7,2492.6,1.071]
[1748869940992,9.69519781,2492.7,2492.2,0.7636]
[1748869941215,4.80301036,2492.4,2492.3,5.179]
[1748869941428,0.7808,2492.9,2492.4,0.55]
[1748869941429,4.80301036,2492.6,2492.4,0.55]
[1748869941740,4.80301036,2492.8,2492.4,0.55]
[1748869942950,4.80301036,2492.8,2492.4,0.59011646]
[1748869943112,4.80301036,2492.8,2492.4,2.04586321]
[1748869943449,4.81301036,2492.9,2492.6,0.55]
[1748869943592,4.81301036,2492.9,2492.8,0.55]
[1748869943934,0.01,2492.9,2492.8,5.32615327]
[1748869944428,0.01,2492.9,2492.8,13.32615327]
[1748869944589,0.01,2492.9,2492.8,11.33583883]
[1748869945435,0.01,2492.9,2492.8,15.3473921]
[1748869945842,0.01,2492.9,2492.8,11.33583883]
[1748869946843,0.01,2492.9,2492.8,15.3473921]
[1748869958263,0.01,2492.9,2492.8,11.33583883]
[1748869958590,4.81301036,2492.9,2492.8,3.33583883]
[1748869958896,4.81301036,2492.9,2492.8,4.658]
[1748869959191,0.01,2492.9,2492.8,8.66955327]
[1748869959340,0.01,2492.9,2492.8,4.658]
[1748869960709,0.01,2492.9,2492.8,4.657]
[1748869960991,0.01,2492.9,2492.8,6.72504802]
[1748869964948,0.01,2492.9,2492.8,2.61804802]
[1748869965153,0.01,2492.9,2492.8,6.72504802]
[1748869965608,4.81301036,2492.9,2492.8,0.55]
[1748869965901,4.81301036,2492.9,2492.8,5.727]
[1748869966583,4.81301036,2492.9,2492.8,5.177]
[1748869966894,4.81301036,2492.9,2492.8,5.727]
[1748869972219,4.81301036,2492.9,2492.8,4.657]
[1748869974303,0.01,2492.9,2492.8,4.657]
[1748869977080,0.01,2492.9,2492.8,8.66855327]
[1748869977388,0.01,2492.9,2492.8,18.42504548]
[1748869978916,0.01,2492.9,2492.8,18.42505699]
[1748869981440,0.01,2492.9,2492.8,18.42503296]
[1748869981594,0.01,2492.9,2492.8,19.24183296]
[1748869981791,0.01,2492.9,2492.8,23.99183296]
[1748869983236,0.01,2492.9,2492.8,28.79484332]
[1748869984475,0.01,2492.9,2492.8,25.05983296]
[1748869985368,0.01,2492.9,2492.8,20.30908709]
[1748869989447,0.01,2492.9,2492.8,20.30898311]
[1748869990978,0.01,2492.9,2492.8,14.58398311]
[1748869991154,0.01,2492.9,2492.8,19.75898311]
[1748869991477,0.01,2492.9,2492.8,20.30898311]
[1748869993442,0.01,2492.9,2492.8,20.30910233]
[1748869993947,0.01,2492.9,2492.8,16.20310233]
[1748869994153,0.01,2492.9,2492.8,20.30910233]
[1748869995054,0.01,2492.9,2492.8,20.30919344]
[1748869997486,0.01,2492.9,2492.8,20.3092231]
[1748869998149,0.01,2492.9,2492.8,16.2032231]
[1748869998355,0.01,2492.9,2492.8,8.93084701]
[1748869998551,0.01,2492.9,2492.8,18.11740028]
[1748870001380,0.01,2492.9,2492.8,17.73655327]
[1748870001587,0.01,2492.9,2492.8,18.11765247]
[1748870005498,0.01,2492.9,2492.8,18.11806066]
[1748870007012,0.01,2492.9,2492.8,25.89714453]
[1748870008989,0.01,2493.9,2493.8,4.55994466]
[1748870009194,0.01,2493.9,2493.8,9.73494466]
[1748870009424,0.01,2493.9,2493.8,10.11616507]
[1748870011438,0.01,2493.9,2493.8,9.73494466]
[1748870011597,0.01,2493.9,2493.8,11.37972963]
[1748870011793,0.01,2493.9,2493.8,10.99895673]
[1748870011998,0.01,2493.9,2493.8,11.37970954]
[1748870012423,0.01,2493.9,2493.8,11.37959828]
[1748870013343,0.01,2493.9,2493.8,11.37959978]
[1748870013707,0.01,2493.9,2493.8,10.99895673]
[1748870015207,0.01,2493.9,2493.8,6.89295673]
[1748870015410,0.01,2493.9,2493.8,10.99795673]
[1748870016003,0.01,2493.9,2493.8,11.76925673]
[1748870016202,0.01,2493.9,2493.8,12.14963438]
[1748870016601,0.01,2493.9,2493.8,20.14963438]
[1748870017214,0.01,2493.9,2493.8,20.14939753]
[1748870019416,0.01,2493.9,2493.8,20.54188844]
[1748870020341,0.01,2493.9,2493.8,20.54155267]
[1748870020552,0.01,2493.9,2493.8,20.14906176]
[1748870021047,0.01,2493.9,2493.8,24.89906176]
[1748870021254,0.01,2493.9,2493.8,24.89887828]
[1748870022268,0.01,2493.9,2493.8,33.55887828]
[1748870022564,0.01,2494.9,2494.8,12.55833734]
[1748870022767,0.01,2494.9,2494.8,19.38601951]
[1748870025270,0.01,2494.9,2494.8,7.37768217]
[1748870025563,0.01,2494.9,2494.8,5.721]
[1748870026569,0.01,2494.9,2494.8,6.16370329]
[1748870028270,0.01,2494.9,2494.8,10.17204063]
[1748870028482,0.01,2494.9,2494.8,6.16370329]
[1748870028853,0.01,2494.9,2494.8,10.17204063]
[1748870029184,0.01,2494.9,2494.8,8.3766768]
[1748870029774,0.01,2494.9,2494.8,12.38501414]
[1748870030676,0.01,2494.9,2494.8,0.99270329]
[1748870030877,0.7793,2494.9,2494.8,0.99270329]
[1748870031170,0.7793,2494.9,2494.8,6.16370329]
[1748870033693,0.01,2494.9,2494.8,6.16370329]
[1748870034287,0.7862,2494.9,2494.8,6.16370329]
[1748870035002,0.7862,2494.9,2494.8,0.99270329]
[1748870035172,1.74590767,2494.9,2494.8,0.44270329]
[1748870036882,0.7862,2494.9,2494.8,0.99270329]
[1748870037784,5.58921036,2494.9,2494.8,6.16270329]
[1748870038380,0.7862,2494.9,2494.8,6.16270329]
[1748870040676,0.01,2494.9,2494.8,6.16270329]
[1748870041810,0.01,2494.9,2494.8,0.99270329]
[1748870041986,6.03121236,2494.9,2494.8,6.16170329]
[1748870042369,5.60081036,2494.9,2494.8,6.16170329]
[1748870042804,0.7978,2494.9,2494.8,6.16170329]
[1748870048476,0.7978,2494.9,2494.8,2.05970329]
[1748870048714,0.7978,2494.9,2494.8,6.16170329]
[1748870049582,0.7978,2494.9,2494.8,0.99270329]
[1748870049819,2.15948671,2494.9,2494.8,6.16170329]
[1748870050422,0.7978,2494.9,2494.8,6.16170329]
[1748870050879,4.80597668,2494.9,2494.8,0.44270329]
[1748870066961,9.60898704,2494.9,2494.8,0.44270329]
[1748870070013,0.01,2494.9,2494.8,0.44270329]
[1748870071149,0.01,2494.9,2494.8,0.99270329]
[1748870071449,0.01,2494.9,2494.8,1.58483362]
[1748870073751,0.01,2494.9,2494.8,1.62491504]
[1748870074822,0.01,2494.9,2494.8,1.58483362]
[1748870075218,0.01,2494.9,2494.8,5.59317096]
[1748870075752,0.01,2494.9,2494.8,6.39587096]
[1748870076523,0.01,2494.9,2494.8,2.38753362]
[1748870077741,0.01,2494.9,2494.8,7.00553362]
[1748870077941,0.01,2494.9,2494.8,7.55553362]
[1748870081051,4.81301036,2494.9,2494.8,0.99270329]
[1748870081978,0.01,2494.9,2494.8,0.99270329]
[1748870084243,4.81301036,2494.9,2494.8,5.09370329]
[1748870084645,4.81301036,2494.9,2494.8,0.99270329]
[1748870084856,0.01,2494.9,2494.8,5.09370329]
[1748870090504,9.57388704,2494.9,2494.8,0.44270329]
[1748870090653,10.53127574,2494.9,2494.8,0.44270329]
[1748870090857,5.56571036,2494.9,2494.8,0.99270329]
[1748870091501,9.57388704,2494.9,2494.8,0.99270329]
[1748870092573,9.57388704,2494.9,2494.8,0.44270329]
[1748870093101,4.8226194,2494.5,2494.4,1.067]
[1748870093300,10.50876125,2494.5,2494.4,1.067]
[1748870093492,4.82326233,2494.1,2494.0,4.101]
[1748870093686,9.62627269,2494.1,2494.0,4.101]
[1748870093895,9.62627269,2494.1,2494.0,4.651]
[1748870094366,9.62627269,2494.1,2494.0,4.101]
[1748870094792,4.00962309,2494.0,2493.9,8.658]
[1748870094996,4.00962309,2494.0,2493.9,13.309]
[1748870095218,4.00962309,2494.0,2493.9,8.658]
[1748870095501,4.00981274,2493.9,2493.7,5.168]
[1748870095701,8.81286853,2493.9,2493.7,5.168]
[1748870096201,6.18692126,2494.1,2493.8,0.55]
[1748870096355,8.81235958,2494.2,2493.8,0.55]
[1748870096692,4.00946536,2494.1,2493.8,0.55]
[1748870097264,4.00963588,2494.0,2493.8,0.55]
[1748870097465,4.00953204,2494.1,2493.8,0.55]
[1748870097661,4.00934531,2494.2,2493.8,0.55]
[1748870097866,4.00954468,2494.1,2493.8,0.55]
[1748870098467,4.0096314,2494.0,2493.8,0.55]
[1748870103407,4.0094813,2494.1,2493.8,0.55]
[1748870105019,5.37210129,2494.2,2493.8,0.55]
[1748870105316,4.00882164,2494.5,2494.0,0.55]
[1748870105497,4.8913562,2494.5,2494.2,0.55]
[1748870105691,0.88253456,2494.5,2494.2,0.55]
[1748870106720,4.89135539,2494.5,2494.2,0.55]
[1748870107885,0.88253456,2494.5,2494.2,0.55]
[1748870109020,4.00833873,2494.8,2494.4,0.55]
[1748870109201,4.00854711,2494.7,2494.6,0.55]
[1748870109784,4.80301036,2494.8,2494.6,0.55]
[1748870109984,0.01,2494.9,2494.6,0.55]
[1748870110522,4.01819597,2494.9,2494.6,0.55]
[1748870110729,0.01,2494.9,2494.6,0.55]
[1748870111204,4.01826475,2494.9,2494.6,0.55]
[1748870111399,4.00835382,2494.8,2494.6,0.55]
[1748870111992,0.01,2494.9,2494.6,0.55]
[1748870112444,4.01819498,2494.9,2494.6,0.55]
[1748870112739,0.01,2494.9,2494.7,5.168]
[1748870113055,0.01,2494.9,2494.8,0.55]
[1748870114498,4.01817668,2494.9,2494.8,0.55]
[1748870114873,0.01,2494.9,2494.8,0.55]
[1748870115009,6.09592202,2494.9,2494.7,5.168]
[1748870115204,8.82128797,2494.9,2494.7,5.718]
[1748870115397,0.01,2494.9,2494.8,0.55]
[1748870116507,4.81301036,2494.9,2494.3,0.8195]
[1748870116706,8.82128438,2494.9,2494.4,5.718]
[1748870117235,4.81301036,2494.9,2494.4,5.718]
[1748870117540,4.81301036,2494.9,2494.4,15.57266401]
[1748870119707,8.82119425,2494.9,2494.4,15.57266401]
[1748870119920,4.81301036,2494.9,2494.4,13.718]
[1748870125015,0.01,2494.9,2494.6,0.55]
[1748870125249,0.01,2494.9,2494.8,0.55]
[1748870130138,0.01,2494.9,2494.8,1.318]
[1748870131251,0.01,2494.9,2494.8,4.1]
[1748870134756,0.01,2494.9,2494.8,5.166]
[1748870137033,0.01,2494.9,2494.7,0.55]
[1748870137221,0.01,2494.9,2494.8,5.166]
[1748870142788,0.01,2494.9,2494.8,18.37166734]
[1748870143091,0.01,2494.9,2494.8,19.20306734]
[1748870151485,0.01,2494.9,2494.8,27.85906734]
[1748870153985,0.01,2495.9,2495.7,0.55]
[1748870154173,0.01,2495.9,2495.6,4.0070375]
[1748870154174,0.01,2495.9,2495.8,5.7540631]
[1748870154353,0.01,2495.9,2495.8,5.714]
[1748870154555,0.01,2495.9,2495.8,19.9012867]
[1748870154810,0.01,2495.9,2495.8,19.8612236]
[1748870154978,0.01,2495.9,2495.8,15.8544923]
[1748870155605,0.01,2495.9,2495.8,15.0867923]
[1748870156098,0.01,2495.9,2495.8,9.9227923]
[1748870156390,0.01,2495.9,2495.8,15.0867923]
[1748870156594,0.01,2495.9,2495.8,8.55]
[1748870156759,0.01,2495.9,2495.8,13.714]
[1748870156959,0.01,2495.9,2495.8,8.55]
[1748870157160,0.01,2495.9,2495.8,13.714]
[1748870158707,0.01,2495.9,2495.8,17.7207313]
[1748870158873,0.01,2495.9,2495.8,21.28788347]
[1748870165234,0.01,2495.9,2495.8,7.57388347]
[1748870165439,0.01,2495.9,2495.8,9.1677313]
[1748870165732,0.01,2495.9,2495.8,18.4906313]
[1748870166030,0.01,2496.9,2496.8,0.55]
[1748870166235,0.01,2496.9,2496.8,1.615]
[1748870166539,0.01,2496.9,2496.8,5.62012656]
[1748870166694,0.01,2496.9,2496.8,13.62012656]
[1748870166891,0.01,2496.9,2496.8,15.39173922]
[1748870167330,0.01,2496.9,2496.8,11.38661266]
[1748870170369,0.01,2496.9,2496.2,0.8111]
[1748870170514,0.01,2496.9,2496.0,4.00626124]
[1748870170515,0.7599,2496.8,2496.5,0.55]
[1748870170710,0.7599,2496.8,2496.6,1.065]
[1748870171251,4.00556854,2496.6,2496.4,1.065]
[1748870171552,0.7777,2496.5,2496.3,1.065]
[1748870171751,0.7777,2496.5,2496.4,0.55]
[1748870171955,4.78331343,2496.5,2496.3,1.065]
[1748870172109,4.78331343,2496.5,2496.4,0.55]
[1748870172309,4.78331343,2496.5,2495.9,8.0]
[1748870172537,4.78331343,2496.5,2496.2,1.065]
[1748870172742,4.78331343,2496.5,2496.3,0.55]
[1748870173826,4.00592877,2496.3,2495.5,4.79761796]
[1748870174150,4.81790065,2496.2,2495.7,8.55]
[1748870174450,4.81790065,2496.2,2495.8,5.16]
[1748870174451,0.8118,2496.2,2495.8,5.16]
[1748870174638,0.8118,2496.2,2495.9,0.55]
[1748870179160,0.8118,2496.2,2495.9,1.56175021]
[1748870179353,4.00561633,2496.5,2495.9,1.52168571]
[1748870179559,0.7674,2496.7,2495.9,1.52168571]
[1748870179858,0.7674,2496.7,2496.2,4.00606255]
[1748870180068,0.7674,2496.7,2496.4,0.55]
[1748870183053,0.7674,2496.7,2496.6,0.55]
[1748870184384,0.7674,2496.7,2496.2,8.55]
[1748870184588,0.7674,2496.7,2496.3,5.161]
[1748870185288,0.7674,2496.7,2496.3,9.16690432]
[1748870185584,0.7674,2496.7,2496.5,0.55]
[1748870186790,0.7674,2496.7,2496.4,0.55]
[1748870186963,0.7674,2496.7,2496.5,4.00559426]
[1748870187158,0.01,2496.9,2496.5,4.00559426]
[1748870187691,0.01,2496.9,2496.4,5.32839211]
[1748870187889,0.01,2496.9,2496.5,4.00552358]
[1748870188388,0.01,2496.9,2496.4,0.55]
[1748870188597,0.816,2496.7,2496.3,5.71]
[1748870188951,0.826,2496.9,2496.6,4.00531719]
[1748870189151,0.826,2496.9,2496.8,0.55]
[1748870189383,0.826,2496.9,2496.8,4.55512656]
[1748870189581,0.826,2496.9,2496.8,0.55]
[1748870189887,0.01,2496.9,2496.8,4.55512656]
[1748870190049,0.01,2496.9,2496.8,6.34100894]
[1748870191092,0.01,2496.9,2496.8,11.1440193]
[1748870191292,0.01,2496.9,2496.8,11.10397228]
[1748870192288,0.01,2496.9,2496.8,19.10397228]
[1748870192948,0.01,2496.9,2496.8,19.89757228]
[1748870193147,0.01,2496.9,2496.8,24.70058264]
[1748870193398,0.7666,2497.7,2497.6,4.553733]